bitfinex-derivatives/quotes_ETHF0:USTF0_20250919
["timestamp","ask_amount","ask_price","bid_price","bid_amount"]
[1758252072200,0.31,4601.8,4601.6,3.2295]
[1758252072402,2.50986582,4601.7,4601.6,0.0217]
[1758252072699,2.72886582,4601.7,4601.0,0.5226]
[1758252072907,0.7009,4601.1,4601.0,0.726]
[1758252073105,1.24679338,4601.1,4601.0,0.507]
[1758252073909,1.4680737,4601.1,4601.0,0.507]
[1758252074792,1.4680737,4601.1,4601.0,0.7121]
[1758252075195,0.54589338,4601.1,4601.0,5.05604]
[1758252075395,3.2078,4601.9,4601.8,0.7121]
[1758252075597,0.96200002,4601.9,4601.8,0.7121]
[1758252078305,0.76760002,4601.9,4601.8,0.7121]
[1758252079907,1.27200002,4601.9,4601.8,0.7121]
[1758252082909,1.46850002,4601.9,4601.8,0.7121]
[1758252084204,1.15850002,4601.9,4601.7,1.26095432]
[1758252084517,1.24717411,4601.8,4601.7,1.76795432]
[1758252085114,1.24717411,4601.8,4601.7,1.97305432]
[1758252087016,0.54627411,4601.8,4601.7,1.97305432]
[1758252087413,0.54627411,4602.3,4601.7,1.66945432]
[1758252087612,0.31,4602.1,4601.7,0.6275]
[1758252087813,0.7009,4602.1,4602.0,1.45045432]
[1758252088015,1.47117625,4602.1,4602.0,1.75405432]
[1758252088220,1.47117625,4602.1,4602.0,1.87445432]
[1758252089119,0.96467625,4602.1,4602.0,0.8325]
[1758252089314,0.96467625,4602.1,4602.0,1.87445432]
[1758252090823,1.26637625,4602.1,4602.0,1.87445432]
[1758252091725,1.47017625,4602.1,4602.0,0.1964]
[1758252091921,1.47017625,4602.1,4602.0,1.74165432]
[1758252092126,1.47017625,4602.1,4602.0,1.86205432]
[1758252092322,1.47015167,4602.1,4602.0,1.86205432]
[1758252093028,0.77025167,4602.1,4602.0,1.86205432]
[1758252094432,0.97365167,4602.1,4602.0,1.86205432]
[1758252094928,0.97365167,4602.1,4602.0,2.08105432]
[1758252095429,0.77025167,4602.1,4602.0,2.08105432]
[1758252095628,0.77025167,4602.1,4602.0,3.12300864]
[1758252095823,1.55817104,4603.3,4603.2,0.209]
[1758252095824,0.7089,4603.3,4603.2,0.209]
[1758252096031,0.42801873,4603.3,4603.2,1.74165432]
[1758252096230,0.72971873,4603.3,4603.2,1.74165432]
[1758252096432,0.93351873,4603.3,4603.2,1.74165432]
[1758252097231,0.4072,4603.3,4603.2,1.74165432]
[1758252097532,0.2034,4603.3,4603.2,1.74165432]
[1758252097729,0.5051,4603.3,4603.2,1.74165432]
[1758252098624,0.2034,4603.3,4603.2,1.74165432]
[1758252098828,0.5051,4603.6,4603.5,0.8201]
[1758252099031,0.93310946,4603.6,4603.5,1.86205432]
[1758252099934,0.93310946,4603.6,4603.5,1.74165432]
[1758252100440,0.93293809,4603.6,4603.5,0.4907]
[1758252102441,0.7089,4603.6,4603.5,0.4907]
[1758252103640,0.3017,4603.2,4603.1,3.2078]
[1758252103938,0.3017,4603.1,4602.8,0.5123]
[1758252104145,0.7089,4602.9,4602.8,0.7087]
[1758252104637,0.7089,4602.9,4602.8,1.75065432]
[1758252104834,0.7089,4602.9,4602.8,1.95965432]
[1758252105342,0.7089,4602.9,4602.8,1.74165432]
[1758252107842,0.7089,4602.9,4602.8,0.6997]
[1758252108046,0.7089,4602.9,4602.6,0.0217]
[1758252108241,0.54459001,4602.8,4602.6,0.0217]
[1758252108438,0.7089,4602.7,4602.6,0.316]
[1758252108747,0.7089,4602.7,4602.6,0.5124]
[1758252109042,0.218,4603.2,4603.0,0.1204]
[1758252109043,0.3017,4603.2,4603.0,0.1204]
[1758252109245,0.7089,4603.2,4603.1,0.6997]
[1758252109437,1.25351696,4603.2,4603.1,0.6997]
[1758252110038,1.25351696,4603.2,4603.1,0.4907]
[1758252111646,1.25351696,4603.2,4603.1,0.6997]
[1758252113247,1.47757316,4603.2,4603.1,0.6997]
[1758252114547,1.17587316,4603.2,4603.1,0.6997]
[1758252114749,1.47757316,4603.2,4603.1,0.6997]
[1758252117851,1.47757316,4603.2,4603.1,1.58979517]
[1758252120555,1.47781792,4603.2,4603.1,1.58979517]
[1758252122950,1.47781792,4603.2,4603.1,1.38079517]
[1758252125057,0.287,4602.8,4602.5,0.3384]
[1758252125242,0.1258,4603.0,4602.5,0.3384]
[1758252125243,0.4912,4602.6,4602.5,1.24376]
[1758252125448,0.97311792,4602.6,4602.5,1.24376]
[1758252125651,0.54461696,4602.6,4602.5,1.24376]
[1758252125850,0.54461696,4602.6,4602.5,0.7383]
[1758252126147,0.54461696,4603.3,4602.5,0.7383]
[1758252126354,0.2042,4603.1,4603.0,0.8153]
[1758252126555,0.9735099,4603.1,4603.0,1.70539517]
[1758252126748,1.2605099,4603.1,4603.0,1.70539517]
[1758252126955,1.4566099,4603.1,4603.0,1.17829517]
[1758252127255,1.4566099,4603.1,4603.0,1.38579517]
[1758252127751,1.4566099,4603.1,4603.0,1.57819517]
[1758252128857,1.4566099,4603.1,4603.0,0.6881]
[1758252129057,1.4566099,4603.1,4603.0,1.57819517]
[1758252129556,1.4566099,4603.1,4603.0,1.70539517]
[1758252131652,0.9735099,4603.1,4603.0,1.70539517]
[1758252131861,0.7693099,4603.1,4603.0,1.70539517]
[1758252132558,0.9735099,4603.1,4603.0,1.70539517]
[1758252132958,1.2605099,4603.1,4603.0,1.70539517]
[1758252139165,1.4566099,4603.1,4603.0,1.70539517]
[1758252140169,1.45686379,4603.1,4603.0,1.70539517]
[1758252149873,1.16986379,4603.1,4603.0,1.70539517]
[1758252150475,1.46806379,4603.1,4603.0,1.70539517]
[1758252151477,1.46806379,4603.1,4603.0,1.57819517]
[1758252153576,1.46806379,4603.1,4603.0,1.70449517]
[1758252153876,0.76956379,4603.1,4603.0,1.70449517]
[1758252154375,0.76956379,4603.1,4603.0,2.59459034]
[1758252156870,0.76956379,4603.1,4603.0,2.81184034]
[1758252157774,0.76956379,4603.1,4603.0,2.59459034]
[1758252168580,0.54461696,4603.1,4603.0,2.59459034]
[1758252168776,0.54461696,4603.3,4603.0,2.60009034]
[1758252168977,0.74691696,4603.3,4603.2,1.59719517]
[1758252169176,1.26887579,4603.3,4603.2,1.59719517]
[1758252170182,1.46117579,4603.3,4603.2,0.7071]
[1758252170379,1.46117579,4603.3,4603.2,1.59719517]
[1758252172972,1.46118133,4603.3,4603.1,0.2937]
[1758252173175,0.6928,4603.1,4603.0,0.0217]
[1758252173482,0.6928,4602.4,4602.3,0.218]
[1758252173684,1.23741696,4602.4,4602.3,0.218]
[1758252173878,1.23741696,4602.4,4602.3,1.10809517]
[1758252174080,0.93921696,4602.4,4602.1,0.89009517]
[1758252174278,0.6928,4602.4,4602.3,0.218]
[1758252174482,1.23846455,4602.4,4602.3,0.218]
[1758252174679,0.6928,4602.3,4602.1,0.89009517]
[1758252174883,1.23846455,4602.2,4602.1,0.89009517]
[1758252175083,1.23846455,4602.2,4602.1,1.10809517]
[1758252175480,1.23846455,4602.2,4602.1,1.62819517]
[1758252175682,1.23846455,4602.2,4602.1,0.5201]
[1758252175886,1.23846455,4602.2,4602.1,1.83439517]
[1758252176481,3.2078,4602.8,4602.1,1.52349517]
[1758252176681,1.45409048,4602.7,4602.6,1.40819517]
[1758252176877,1.45409048,4602.7,4602.6,1.20099517]
[1758252177082,1.45408167,4602.7,4602.6,0.89009517]
[1758252177884,1.45408167,4602.7,4602.6,1.20099517]
[1758252178690,1.45408167,4602.7,4602.6,1.40819517]
[1758252179889,1.45408167,4602.7,4602.6,0.5181]
[1758252181286,1.2304632,4602.7,4602.6,0.5181]
[1758252181886,0.5453632,4602.7,4602.6,0.7145]
[1758252182083,0.3108,4603.3,4602.6,0.7145]
[1758252182283,1.17368292,4603.2,4603.1,0.4039]
[1758252182480,1.17368292,4603.2,4603.1,1.74374768]
[1758252182982,1.48448292,4603.2,4603.1,1.74374768]
[1758252183888,0.95019769,4603.2,4603.1,1.74374768]
[1758252184191,0.74939769,4603.2,4603.1,1.74374768]
[1758252184891,1.06019769,4603.2,4603.1,1.74374768]
[1758252185384,0.74939769,4603.2,4603.1,1.74374768]
[1758252185884,1.06019769,4603.2,4603.1,1.74374768]
[1758252186994,1.06017481,4603.2,4603.1,1.74374768]
[1758252187381,1.26097481,4603.2,4603.1,1.74374768]
[1758252187986,1.26097481,4603.2,4603.0,0.3368]
[1758252187987,0.3108,4603.1,4602.7,1.04164768]
[1758252188193,0.716,4602.8,4602.7,1.54734768]
[1758252188383,0.716,4602.8,4602.7,1.74374768]
[1758252188584,0.4052,4602.8,4602.7,1.74374768]
[1758252188996,0.716,4602.8,4602.7,1.74374768]
[1758252191187,0.4052,4602.8,4602.7,1.74374768]
[1758252191394,0.716,4602.8,4602.7,1.74374768]
[1758252191896,3.4122,4603.4,4603.3,0.7021]
[1758252192085,3.95721289,4603.4,4603.3,1.74374768]
[1758252192291,4.26801289,4603.4,4603.3,1.74374768]
[1758252192989,4.46881289,4603.4,4603.3,1.74374768]
[1758252195896,3.95721289,4603.4,4603.3,1.74374768]
[1758252196799,0.74941289,4603.4,4603.3,1.74374768]
[1758252196992,1.06021289,4603.4,4603.3,1.74374768]
[1758252201308,0.74941289,4603.4,4603.3,1.74374768]
[1758252202708,1.06021289,4603.4,4603.3,1.74374768]
[1758252204012,0.74941289,4603.4,4603.3,1.74374768]
[1758252204211,1.06021289,4603.4,4603.3,1.74374768]
[1758252206207,0.54501289,4603.4,4603.3,2.78539536]
[1758252206512,3.723,4604.5,4604.4,0.7021]
[1758252206707,4.14637698,4604.5,4604.4,1.74374768]
[1758252209110,4.14637698,4604.5,4604.4,0.7021]
[1758252210712,4.14637698,4604.5,4603.7,0.5081]
[1758252210713,0.7133,4603.8,4603.7,0.5081]
[1758252210913,0.7133,4603.8,4603.7,1.75304768]
[1758252211312,0.7133,4603.8,4603.7,0.7114]
[1758252211509,0.5024,4603.5,4603.4,0.3061]
[1758252211712,1.87004768,4603.5,4603.4,0.3061]
[1758252211911,1.87004768,4603.5,4603.3,3.2078]
[1758252212112,0.7133,4603.4,4603.3,3.5139]
[1758252212412,0.7133,4603.4,4603.3,3.7159]
[1758252214613,0.7133,4603.4,4603.3,3.9192]
[1758252216618,3.2078,4604.0,4603.9,0.202]
[1758252216818,0.22054777,4604.0,4603.9,0.7114]
[1758252218023,1.97549545,4604.0,4603.9,0.5081]
[1758252218422,2.4126313,4604.0,4603.9,0.5081]
[1758252218917,2.2975313,4604.0,4603.9,0.5081]
[1758252219521,2.4126313,4604.0,4603.9,0.5081]
[1758252219822,5.84095731,4604.0,4603.6,0.3061]
[1758252220117,0.7133,4603.7,4603.6,0.3061]
[1758252220424,1.25588362,4603.7,4603.6,0.5081]
[1758252220627,1.25588362,4603.7,4603.6,0.202]
[1758252220825,1.25588362,4603.7,4603.6,0.5081]
[1758252221313,1.47643029,4603.7,4603.6,0.5081]
[1758252222721,0.4227,4603.4,4603.3,0.5081]
[1758252223020,0.7133,4603.4,4603.3,0.5081]
[1758252223322,1.25588362,4603.4,4603.3,0.5081]
[1758252223822,1.25588362,4603.4,4603.0,0.1188]
[1758252224018,0.4227,4602.8,4602.7,0.2033]
[1758252224320,0.54291806,4602.8,4602.7,0.7114]
[1758252224515,3.4187,4603.4,4603.3,0.7114]
[1758252224719,4.18206356,4603.4,4603.3,1.75304768]
[1758252225924,0.76336356,4603.4,4603.3,1.75304768]
[1758252226518,0.54278529,4603.4,4603.3,1.75304768]
[1758252229827,0.75368529,4603.4,4603.3,1.75304768]
[1758252230628,0.75368529,4603.4,4603.3,0.7114]
[1758252231924,1.04428529,4603.4,4603.3,0.7114]
[1758252232331,1.25608529,4603.4,4603.3,0.7114]
[1758252234531,2.29773297,4603.4,4603.3,0.5081]
[1758252235633,0.8031,4603.0,4602.9,0.31]
[1758252235833,0.8031,4603.0,4602.9,0.5207]
[1758252236035,0.6877,4603.0,4602.9,0.5207]
[1758252236631,0.6877,4603.0,4602.9,0.7304]
[1758252236829,0.495,4603.4,4603.3,0.4204]
[1758252237025,0.495,4603.4,4603.3,0.7304]
[1758252237225,1.22995702,4603.4,4603.3,0.7304]
[1758252239729,2.12005825,4603.4,4603.3,0.7304]
[1758252242827,2.12005825,4603.4,4603.3,0.5207]
[1758252246439,0.54225702,4603.4,4603.3,0.7179]
[1758252246838,1.05235702,4603.4,4603.3,1.60800123]
[1758252247340,0.74005702,4603.4,4603.3,1.60800123]
[1758252248540,1.27399109,4603.4,4603.3,1.60800123]
[1758252251549,1.47519109,4603.4,4603.0,3.5708]
[1758252251846,1.60140123,4603.2,4603.1,0.3117]
[1758252252148,1.60140123,4603.2,4603.0,3.2295]
[1758252252149,0.7113,4603.1,4603.0,3.2295]
[1758252252450,1.47519109,4603.1,4603.0,3.2295]
[1758252253838,2.58254232,4603.1,4602.6,0.3117]
[1758252254049,1.60140123,4602.7,4602.6,0.514]
[1758252254252,2.36537073,4602.7,4602.6,0.514]
[1758252255048,2.36537073,4602.7,4602.3,0.218]
[1758252255246,0.7113,4602.5,4602.4,0.3117]
[1758252255449,0.399,4602.3,4602.2,0.3117]
[1758252255649,0.93301248,4602.3,4602.2,0.3117]
[1758252255850,1.4752695,4602.3,4602.2,0.3117]
[1758252256444,2.36537073,4602.3,4602.1,3.2078]
[1758252256649,1.47569523,4602.2,4602.1,3.2078]
[1758252257240,1.47569523,4602.2,4602.1,3.5195]
[1758252257443,1.47569523,4602.2,4602.1,3.7218]
[1758252258243,1.47569523,4602.2,4602.1,1.60130123]
[1758252258447,0.96219523,4602.2,4602.1,1.60130123]
[1758252258648,0.76439523,4602.2,4602.1,1.60130123]
[1758252258949,1.47569523,4602.2,4602.1,0.7112]
[1758252260144,0.9526916,4602.2,4602.1,0.7112]
[1758252261142,0.9526916,4602.2,4602.1,0.3117]
[1758252261343,0.7113,4602.2,4602.1,0.3117]
[1758252264552,0.7113,4602.2,4602.0,0.0217]
[1758252264754,1.60140123,4602.1,4602.0,0.0217]
[1758252265151,1.60140123,4602.1,4602.0,0.2023]
[1758252265351,1.60140123,4602.1,4602.0,0.514]
[1758252270559,0.7041,4601.9,4601.8,0.0217]
[1758252271058,1.59420123,4601.9,4601.8,0.0217]
[1758252271661,1.59420123,4601.9,4601.6,0.3046]
[1758252271856,1.59420123,4601.7,4601.6,0.4991]
[1758252275066,1.09200123,4601.7,4601.6,0.3989]
[1758252275266,1.39710123,4601.7,4601.6,0.3989]
[1758252275568,1.59420123,4601.7,4601.6,0.7035]
[1758252276562,1.39710123,4601.7,4601.6,0.7035]
[1758252276767,1.09200123,4601.7,4601.6,0.7035]
[1758252276970,1.59420123,4601.7,4601.6,0.7035]
[1758252277163,0.7041,4601.7,4601.6,0.7035]
[1758252277364,0.3051,4601.9,4601.7,0.3046]
[1758252277564,0.507,4601.9,4601.8,0.7035]
[1758252277969,0.7041,4601.9,4601.8,0.7035]
[1758252279170,0.399,4601.9,4601.8,0.7035]
[1758252279366,0.4199,4602.5,4602.4,0.7035]
[1758252279667,2.60168738,4602.5,4602.4,0.7035]
[1758252282872,2.07858738,4602.5,4602.4,0.7035]
[1758252283474,2.50468738,4602.5,4602.0,0.1251]
[1758252283769,0.7041,4602.2,4602.1,0.4991]
[1758252283969,1.49358615,4602.2,4602.1,0.4991]
[1758252284766,2.38368738,4602.2,4602.1,0.7035]
[1758252284960,1.49358615,4602.2,4602.1,1.59360123]
[1758252285571,2.38368738,4602.2,4602.1,0.7035]
[1758252286675,2.38368738,4602.2,4602.1,0.4991]
[1758252287770,2.38368738,4602.2,4602.1,0.7035]
[1758252288875,2.38426884,4602.2,4602.1,0.7035]
[1758252292973,2.38426769,4602.2,4602.1,0.7035]
[1758252294577,2.38426769,4602.2,4602.1,0.4991]
[1758252294978,2.38426769,4602.2,4601.9,0.0217]
[1758252295179,1.59420123,4602.0,4601.9,0.5208]
[1758252295379,2.38426769,4602.0,4601.9,0.5208]
[1758252295677,0.3912,4601.3,4601.2,0.3032]
[1758252295979,0.6975,4601.2,4601.1,2.8928]
[1758252296781,0.6975,4601.2,4601.1,0.716]
[1758252298882,0.94533666,4601.2,4601.1,0.716]
[1758252299372,0.6975,4601.2,4601.1,0.716]
[1758252300682,0.1186,4601.0,4600.9,3.2295]
[1758252300887,1.60671317,4601.0,4600.9,3.2295]
[1758252301077,1.60671317,4601.0,4600.9,3.2078]
[1758252301479,1.60671317,4601.0,4600.9,3.4976]
[1758252301480,1.06370333,4601.0,4600.9,3.4976]
[1758252301885,2.10620035,4601.0,4600.9,3.4976]
[1758252302081,1.85839702,4601.0,4600.9,3.4976]
[1758252302484,2.64885017,4601.0,4600.9,3.4976]
[1758252302682,2.64885017,4601.0,4600.9,3.694]
[1758252302880,2.10608876,4601.0,4600.9,3.694]
[1758252303185,1.98748876,4601.0,4600.9,3.694]
[1758252303880,1.73979702,4601.0,4600.9,3.694]
[1758252304686,0.6973,4601.0,4600.9,3.9007]
[1758252304886,0.3952,4601.0,4600.9,3.9007]
[1758252305089,0.3021,4601.8,4601.3,0.2898]
[1758252305278,0.78900624,4601.7,4601.6,0.4965]
[1758252305477,0.98680624,4601.7,4601.6,0.6929]
[1758252305681,1.28890624,4601.7,4601.6,0.6929]
[1758252305881,1.48630624,4601.7,4601.6,0.6929]
[1758252308088,2.52880326,4601.7,4601.6,0.6929]
[1758252308884,0.3021,4601.6,4601.2,0.218]
[1758252309086,0.3021,4601.2,4600.7,0.0217]
[1758252309284,0.3952,4601.2,4601.1,0.1964]
[1758252309492,1.98628994,4601.2,4601.1,0.1964]
[1758252309890,1.98628994,4601.2,4601.1,0.4862]
[1758252310483,0.1978,4601.2,4601.1,0.6929]
[1758252310689,0.5201,4601.7,4601.2,0.2898]
[1758252310889,0.4158,4601.7,4601.6,0.6929]
[1758252311193,1.70405994,4601.7,4601.6,0.6929]
[1758252311794,1.48605994,4601.7,4601.6,0.6929]
[1758252311986,1.48605567,4601.7,4601.6,0.6929]
[1758252313295,0.78875567,4601.7,4601.6,0.6929]
[1758252314693,0.98655567,4601.7,4601.6,0.6929]
[1758252316600,1.28865567,4601.7,4601.6,0.6929]
[1758252317497,1.48605567,4601.7,4601.6,0.6929]
[1758252319000,0.78875567,4601.7,4601.6,0.6929]
[1758252319194,1.83125269,4601.7,4601.6,0.6929]
[1758252319396,2.33136863,4601.7,4601.6,0.6929]
[1758252320103,2.52876863,4601.7,4601.6,0.4862]
[1758252321403,2.52876863,4601.7,4601.3,0.2898]
[1758252321607,0.6973,4601.4,4601.3,0.6929]
[1758252321904,1.48627161,4601.4,4601.3,0.6929]
[1758252322202,2.52876863,4601.4,4601.3,0.6929]
[1758252322798,0.3021,4601.3,4600.9,3.7156]
[1758252322999,1.85839702,4601.0,4600.9,3.2078]
[1758252323208,2.64790224,4601.0,4600.9,3.2078]
[1758252324207,2.64792929,4601.0,4600.9,3.2078]
[1758252326002,2.64792929,4601.0,4600.7,0.0217]
[1758252326202,0.3952,4600.8,4600.7,0.0217]
[1758252326408,1.48683227,4600.8,4600.7,0.0217]
[1758252326711,0.6973,4600.5,4600.4,3.912]
[1758252327008,2.64813058,4600.5,4600.4,3.2078]
[1758252327209,2.10519892,4600.5,4600.4,3.2078]
[1758252327409,2.32319892,4600.5,4600.4,3.2078]
[1758252327807,2.86602109,4600.5,4600.2,0.2898]
[1758252328002,0.7012,4600.3,4600.2,0.2898]
[1758252328209,0.7012,4600.3,4600.2,0.4962]
[1758252329108,0.7012,4600.3,4600.2,0.7008]
[1758252330910,0.7012,4600.3,4600.2,0.4962]
[1758252331117,1.1843174,4600.3,4600.0,0.5455]
[1758252331314,0.715,4600.1,4600.0,0.7519]
[1758252331515,1.75749702,4600.1,4600.0,0.9565]
[1758252331718,1.75749702,4600.1,4600.0,0.7385]
[1758252332514,2.22195848,4600.1,4600.0,0.0217]
[1758252332720,5.97202316,4600.1,4600.0,0.0217]
[1758252333820,0.409,4599.5,4599.4,0.5122]
[1758252334020,1.75749702,4599.5,4599.4,0.5122]
[1758252334720,1.87999702,4599.5,4599.2,0.218]
[1758252334922,1.87999702,4599.5,4599.3,0.3058]
[1758252335917,1.87999702,4599.5,4599.4,0.5122]
[1758252337325,0.409,4599.2,4599.1,0.5122]
[1758252337525,1.75749702,4599.2,4599.1,0.5122]
[1758252338223,1.75749702,4599.2,4599.1,0.7168]
[1758252340029,1.75749702,4599.2,4599.1,0.5122]
[1758252340228,1.75749702,4599.2,4599.1,0.7168]
[1758252341326,0.715,4599.2,4599.1,0.7168]
[1758252341728,1.25189702,4599.5,4599.4,0.411]
[1758252342026,1.75749702,4599.5,4599.4,0.7168]
[1758252354148,2.00396322,4599.5,4599.4,0.7168]
[1758252355043,2.12646322,4599.5,4599.4,0.3058]
[1758252355652,2.12646322,4599.5,4599.3,0.3058]
[1758252355854,1.87999702,4599.5,4599.3,0.3058]
[1758252356049,0.24664406,4599.4,4599.3,0.3058]
[1758252356254,0.95534406,4599.4,4599.3,0.3058]
[1758252358254,1.49812271,4599.4,4599.3,0.3058]
[1758252359453,1.49812271,4599.4,4599.3,0.5067]
[1758252360749,1.4984321,4599.4,4599.3,0.5067]
[1758252363156,1.4984321,4599.4,4599.3,0.3058]
[1758252363756,2.39003733,4599.4,4599.3,0.3058]
[1758252364059,2.39003733,4599.4,4599.3,0.5031]
[1758252365059,0.9894321,4599.4,4599.3,1.59830523]
[1758252366258,1.3038321,4599.4,4599.3,1.59830523]
[1758252369561,1.3038321,4599.4,4599.3,0.7067]
[1758252370264,1.5028321,4599.4,4599.3,0.7067]
[1758252371764,1.3038321,4599.4,4599.3,0.7067]
[1758252372765,1.5028321,4599.4,4599.3,0.7067]
[1758252373062,1.5028321,4599.4,4599.2,0.0217]
[1758252373263,1.00930523,4599.5,4599.2,0.0217]
[1758252373264,2.39133733,4599.3,4599.2,0.0217]
[1758252373652,2.39133733,4599.3,4599.1,0.218]
[1758252373858,1.1853321,4599.2,4599.0,3.2078]
[1758252374058,2.39133733,4599.1,4599.0,3.2078]
[1758252374258,2.39133733,4599.1,4599.0,3.6986]
[1758252377167,2.39133733,4599.1,4598.8,0.218]
[1758252377467,1.4997321,4599.0,4598.9,0.2935]
[1758252377657,2.39133733,4599.0,4598.9,0.2935]
[1758252378362,3.40064256,4599.0,4598.8,0.0217]
[1758252378569,1.7177321,4598.9,4598.0,3.3258]
[1758252378765,1.60160523,4598.7,4598.0,3.4258]
[1758252379069,2.82679733,4598.7,4598.0,0.218]
[1758252379366,0.8277,4598.0,4597.9,0.2935]
[1758252379668,1.96625868,4598.0,4597.9,0.2935]
[1758252379862,0.3956,4597.6,4597.5,3.5231]
[1758252380062,0.71,4597.6,4597.5,3.5231]
[1758252380464,0.71,4597.6,4597.5,3.8166]
[1758252381066,0.71,4597.6,4597.5,3.2078]
[1758252381266,0.71,4597.3,4597.2,0.5115]
[1758252381463,0.3956,4597.1,4597.0,3.5013]
[1758252381773,0.71,4597.1,4597.0,3.6986]
[1758252381970,0.71,4597.1,4597.0,3.9022]
[1758252383272,1.60160523,4597.1,4597.0,3.9022]
[1758252383768,1.60160523,4597.1,4597.0,4.0225]
[1758252383971,0.71,4597.9,4597.8,0.6944]
[1758252384175,0.24625746,4597.9,4597.8,0.6944]
[1758252384375,0.218,4598.3,4598.2,0.6944]
[1758252384673,0.1966,4598.3,4598.2,0.6944]
[1758252385262,0.218,4598.5,4598.4,0.4009]
[1758252385468,36.23830523,4600.0,4598.4,0.4009]
[1758252385469,3.2078,4599.6,4599.0,0.1203]
[1758252385776,2.38921777,4599.5,4599.4,0.6944]
[1758252385970,0.64180289,4599.5,4599.4,0.6944]
[1758252386176,1.30620523,4599.7,4599.6,0.6944]
[1758252386369,1.33443487,4599.7,4599.6,0.6944]
[1758252386769,1.08820523,4599.7,4599.6,0.6944]
[1758252387375,1.60160523,4599.7,4599.6,0.6944]
[1758252388183,1.28720523,4599.7,4599.6,0.6944]
[1758252388371,3.2078,4600.6,4599.6,0.6944]
[1758252388372,0.3169,4600.4,4599.7,0.3095]
[1758252388672,0.92829001,4600.4,4600.3,0.5148]
[1758252388873,1.71651646,4600.4,4600.3,0.5148]
[1758252389371,0.394,4600.1,4600.0,0.5148]
[1758252389575,0.95711204,4600.1,4600.0,0.5148]
[1758252389774,1.84871727,4600.1,4600.0,0.5148]
[1758252390774,1.84871727,4600.1,4600.0,0.7111]
[1758252391474,1.60250523,4600.1,4600.0,0.7111]
[1758252393277,1.28560523,4600.1,4600.0,0.8331]
[1758252393475,0.89160523,4600.3,4600.0,1.41520523]
[1758252393678,1.60250523,4600.5,4600.4,0.7111]
[1758252393976,1.84535041,4600.5,4600.4,0.7111]
[1758252395279,1.60250523,4600.5,4600.4,0.7111]
[1758252399578,1.28560523,4600.5,4600.4,0.7111]
[1758252401476,1.60250523,4600.5,4600.4,0.7111]
[1758252403682,1.28560523,4600.5,4600.4,0.7111]
[1758252405182,1.60250523,4600.5,4600.4,0.7111]
[1758252407087,1.60250523,4600.5,4599.8,3.2078]
[1758252407088,5.81987523,4600.5,4599.8,3.2078]
[1758252407288,7.66582615,4599.9,4597.5,0.122]
[1758252407481,4.99101046,4597.6,4597.0,0.122]
[1758252407680,1.78321046,4597.1,4597.0,0.122]
[1758252407879,5.21961153,4597.1,4596.5,0.122]
[1758252408182,3.2078,4596.9,4596.6,0.4615]
[1758252408384,0.78140357,4596.8,4596.0,0.122]
[1758252408583,0.76160409,4596.7,4596.0,0.122]
[1758252408784,0.53960409,4596.6,4596.0,0.122]
[1758252408985,0.53960409,4596.6,4596.0,0.3273]
[1758252409287,1.78321046,4596.1,4596.0,0.6368]
[1758252409885,3.00099693,4596.1,4596.0,0.6368]
[1758252411784,3.00099693,4596.1,4596.0,0.8331]
[1758252415689,13.20979386,4596.1,4594.2,3.2078]
[1758252415890,3.00099693,4595.1,4594.0,3.3309]
[1758252416091,3.00099693,4594.6,4594.0,3.3309]
[1758252416391,3.22499693,4594.6,4594.0,3.3309]
[1758252416586,3.22499693,4594.6,4594.5,0.3252]
[1758252417693,3.22499693,4594.6,4594.5,0.122]
[1758252417887,3.22499693,4594.6,4594.5,0.4111]
[1758252418387,3.22499693,4594.6,4594.5,0.6143]
[1758252421298,3.22499693,4594.6,4594.5,0.4111]
[1758252421889,3.22499693,4594.6,4594.5,0.622]
[1758252425889,3.74771279,4594.6,4594.5,0.622]
[1758252429392,3.2078,4594.8,4594.5,0.5342]
[1758252429598,3.52371279,4595.7,4595.6,0.3152]
[1758252429796,0.81942166,4595.7,4595.6,0.7274]
[1758252430497,0.81942166,4595.7,4595.6,0.5261]
[1758252430692,0.59642166,4595.7,4595.6,0.5261]
[1758252430893,0.81942166,4595.7,4595.6,0.5261]
[1758252431294,0.59642166,4595.7,4595.6,0.5261]
[1758252431606,0.81942166,4595.7,4595.6,0.5261]
[1758252432095,0.81942166,4595.7,4595.6,0.7274]
[1758252433303,1.06383168,4595.7,4595.6,0.7274]
[1758252433505,0.84083168,4595.7,4595.6,0.7274]
[1758252433705,1.06383168,4595.7,4595.6,0.7274]
[1758252436202,0.84083168,4595.7,4595.6,0.7274]
[1758252436403,1.06383168,4595.7,4595.6,0.7274]
[1758252436999,1.06383168,4595.7,4595.6,0.5261]
[1758252437207,8.27163168,4595.7,4594.7,2.1772]
[1758252437514,1.9477138,4595.0,4594.7,2.3881]
[1758252437813,1.06483168,4594.9,4594.7,2.3881]
[1758252438007,0.84083168,4594.8,4594.7,2.3881]
[1758252438813,0.84083168,4594.8,4594.7,0.2109]
[1758252439215,0.84083168,4594.8,4594.7,0.5261]
[1758252439709,4.36454447,4594.8,4594.7,0.3152]
[1758252439911,6.31225827,4594.8,4594.2,3.2078]
[1758252440108,1.06483168,4594.7,4594.5,0.4372]
[1758252440308,0.84083168,4594.6,4594.5,0.4372]
[1758252442313,0.84083168,4594.6,4594.5,0.6481]
[1758252443213,0.84083168,4594.6,4594.5,0.4372]
[1758252444313,2.78854548,4594.6,4594.5,0.4372]
[1758252444509,0.84083168,4594.6,4594.5,0.4372]
[1758252445519,2.78854548,4594.6,4594.5,0.4372]
[1758252446221,2.78854548,4594.6,4594.5,0.6481]
[1758252446614,0.84083168,4594.6,4594.5,0.6481]
[1758252446815,0.84083168,4594.6,4594.5,0.8494]
[1758252447118,1.06483168,4594.6,4594.5,0.8494]
[1758252447321,0.1981,4594.4,4594.0,0.1231]
[1758252447619,1.03893168,4594.3,4594.2,0.4122]
[1758252448020,1.32743168,4594.3,4594.2,0.4122]
[1758252449420,1.32743168,4594.3,4594.2,0.7017]
[1758252450618,0.84083168,4594.3,4594.2,0.7017]
[1758252451519,0.83815428,4594.3,4594.2,0.7017]
[1758252454328,0.83815428,4594.3,4594.2,4.7017]
[1758252455628,0.59642166,4594.3,4594.2,4.7017]